[Event "Masters Tournament (MTO)"]
[Site "Biel, Switzerland"]
[Date "2026.07.18"]
[Round "6.44"]
[White "Hornung, Hans"]
[Black "Wenger, Arejou"]
[Result "1/2-1/2"]
[TimeControl "100+30+30sec/move"]
[WhiteTitle "-"]
[BlackTitle "-"]
[WhiteFideId "4615140"]
[BlackFideId "1336584"]
[WhiteElo "1924"]
[BlackElo "1873"]

1. Nf3 {[%clk 01:39:49]} {[%emt 00:00:51]} Nf6 {[%clk 01:40:55]} {[%emt
00:00:23]} 2. c4 {[%clk 01:39:31]} {[%emt 00:00:48]} e6 {[%clk 01:41:21]}
{[%emt 00:00:05]} 3. g3 {[%clk 01:39:34]} {[%emt 00:00:26]} a6 {[%clk
01:41:36]} {[%emt 00:00:15]} 4. Bg2 {[%clk 01:39:33]} {[%emt 00:00:31]} b5
{[%clk 01:41:57]} {[%emt 00:00:10]} 5. d3 {[%clk 01:37:55]} {[%emt 00:02:06]}
Bb7 {[%clk 01:40:46]} {[%emt 00:01:42]} 6. O-O {[%clk 01:37:51]} {[%emt
00:00:33]} Be7 {[%clk 01:37:19]} {[%emt 00:03:59]} 7. e4 {[%clk 01:34:52]}
{[%emt 00:03:28]} d6 {[%clk 01:36:07]} {[%emt 00:01:43]} 8. Nfd2 {[%clk
01:32:56]} {[%emt 00:02:25]} bxc4 {[%clk 01:23:31]} {[%emt 00:13:07]} 9. Nxc4
{[%clk 01:26:55]} {[%emt 00:06:30]} d5 {[%clk 01:14:25]} {[%emt 00:09:37]} 10.
Na5 {[%clk 01:22:21]} {[%emt 00:05:03]} Bc8 {[%clk 01:12:29]} {[%emt 00:02:28]}
11. exd5 {[%clk 01:03:02]} {[%emt 00:19:48]} exd5 {[%clk 01:11:34]} {[%emt
00:01:24]} 12. Nc3 {[%clk 00:58:11]} {[%emt 00:05:20]} O-O {[%clk 01:03:39]}
{[%emt 00:08:26]} 13. Bg5 {[%clk 00:57:00]} {[%emt 00:01:41]} c6 {[%clk
00:54:09]} {[%emt 00:10:01]} 14. Nb3 {[%clk 00:55:36]} {[%emt 00:01:53]} Bg4
{[%clk 00:48:40]} {[%emt 00:05:59]} 15. Qd2 {[%clk 00:44:20]} {[%emt 00:11:45]}
Nbd7 {[%clk 00:44:16]} {[%emt 00:04:55]} 16. h3 {[%clk 00:41:28]} {[%emt
00:03:22]} Bh5 {[%clk 00:43:00]} {[%emt 00:01:46]} 17. Nd4 {[%clk 00:41:17]}
{[%emt 00:00:41]} Ne5 {[%clk 00:39:02]} {[%emt 00:04:28]} 18. Rfe1 {[%clk
00:37:57]} {[%emt 00:03:50]} Bd6 {[%clk 00:32:11]} {[%emt 00:07:23]} 19. Bf4
{[%clk 00:36:02]} {[%emt 00:02:23]} Re8 {[%clk 00:23:33]} {[%emt 00:09:09]} 20.
Bxe5 {[%clk 00:32:34]} {[%emt 00:03:56]} Rxe5 {[%clk 00:21:10]} {[%emt
00:02:54]} 21. Nxc6 {[%clk 00:29:50]} {[%emt 00:03:15]} Rxe1+ {[%clk 00:21:35]}
{[%emt 00:00:05]} 22. Rxe1 {[%clk 00:29:57]} {[%emt 00:00:22]} Qb6 {[%clk
00:19:34]} {[%emt 00:02:31]} 23. Ne7+ {[%clk 00:23:59]} {[%emt 00:06:27]} Bxe7
{[%clk 00:18:38]} {[%emt 00:01:28]} 24. Rxe7 {[%clk 00:24:19]} {[%emt
00:00:09]} Qc5 {[%clk 00:14:05]} {[%emt 00:05:04]} 25. Re5 {[%clk 00:22:21]}
{[%emt 00:02:27]} Qd4 {[%clk 00:12:33]} {[%emt 00:02:03]} 26. Qe3 {[%clk
00:19:55]} {[%emt 00:02:55]} Qxe3 {[%clk 00:12:33]} {[%emt 00:00:31]} 27. fxe3
{[%clk 00:20:06]} {[%emt 00:00:18]} Bg6 {[%clk 00:10:33]} {[%emt 00:02:31]} 28.
Nxd5 {[%clk 00:20:00]} {[%emt 00:00:36]} Nxd5 {[%clk 00:08:55]} {[%emt
00:02:08]} 29. Rxd5 {[%clk 00:19:36]} {[%emt 00:00:52]} Rc8 {[%clk 00:09:07]}
{[%emt 00:00:19]} 30. Rd6 {[%clk 00:16:48]} {[%emt 00:03:18]} h5 {[%clk
00:07:43]} {[%emt 00:01:55]} 31. e4 {[%clk 00:08:50]} {[%emt 00:08:27]} Rc2
{[%clk 00:06:52]} {[%emt 00:01:21]} 32. Rb6 {[%clk 00:07:28]} {[%emt 00:01:52]}
f6 {[%clk 00:06:26]} {[%emt 00:00:56]} 33. a3 {[%clk 00:07:14]} {[%emt
00:00:43]} Be8 {[%clk 00:06:08]} {[%emt 00:00:48]} 34. Rxa6 {[%clk 00:06:00]}
{[%emt 00:01:44]} Rxb2 {[%clk 00:05:55]} {[%emt 00:00:43]} 35. d4 {[%clk
00:05:52]} {[%emt 00:00:39]} Re2 {[%clk 00:01:06]} {[%emt 00:05:18]} 36. Ra7
{[%clk 00:05:42]} {[%emt 00:00:40]} Bb5 {[%clk 00:01:23]} {[%emt 00:00:14]} 37.
d5 {[%clk 00:05:15]} {[%emt 00:00:56]} Bd3 {[%clk 00:01:06]} {[%emt 00:00:48]}
38. d6 {[%clk 00:05:17]} {[%emt 00:00:28]} Kf8 {[%clk 00:01:00]} {[%emt
00:00:36]} 39. a4 {[%clk 00:04:06]} {[%emt 00:01:41]} Bxe4 {[%clk 00:00:51]}
{[%emt 00:00:39]} 40. Bxe4 {[%clk 00:04:16]} {[%emt 00:00:20]} Rxe4 {[%clk
00:01:18]} {[%emt 00:00:03]} 41. Kf2 {[%clk 00:03:43]} {[%emt 00:01:01]} Rd4
{[%clk 00:00:43]} {[%emt 00:01:06]} 42. d7 {[%clk 00:03:38]} {[%emt 00:00:36]}
Ke7 {[%clk 00:00:39]} {[%emt 00:00:32]} 43. Ke3 {[%clk 00:03:32]} {[%emt
00:00:37]} Rb4 {[%clk 00:13:21]} {[%emt 00:17:49]} 44. a5 {[%clk 00:33:03]}
{[%emt 00:00:58]} h4 {[%clk 00:11:05]} {[%emt 00:02:46]} 45. g4 {[%clk
00:31:41]} {[%emt 00:01:52]} Rb3+ {[%clk 00:09:23]} {[%emt 00:02:14]} 46. Kf2
{[%clk 00:27:49]} {[%emt 00:04:20]} Rxh3 {[%clk 00:08:59]} {[%emt 00:00:54]} 47.
a6 {[%clk 00:27:46]} {[%emt 00:00:33]} Ra3 {[%clk 00:09:09]} {[%emt 00:00:20]}
48. Kg2 {[%clk 00:22:01]} {[%emt 00:06:15]} g6 {[%clk 00:07:47]} {[%emt
00:01:52]} 49. Kh2 {[%clk 00:19:20]} {[%emt 00:03:11]} g5 {[%clk 00:01:36]}
{[%emt 00:06:41]} 1/2-1/2

[Event "Masters Tournament (MTO)"]
[Site "Biel, Switzerland"]
[Date "2026.07.18"]
[Round "6.45"]
[White "Hajduk, Tomasz"]
[Black "Vedant, Nayudu"]
[Result "0-1"]
[TimeControl "100+30+30sec/move"]
[WhiteTitle "-"]
[BlackTitle "-"]
[WhiteFideId "21811415"]
[BlackFideId "33369780"]
[WhiteElo "1921"]
[BlackElo "1797"]

1. e4 {[%clk 01:40:58]} {[%emt 00:00:02]} c6 {[%clk 01:40:56]} {[%emt
00:00:05]} 2. d4 {[%clk 01:41:25]} {[%emt 00:00:03]} d5 {[%clk 01:41:23]}
{[%emt 00:00:03]} 3. e5 {[%clk 01:41:51]} {[%emt 00:00:04]} Bf5 {[%clk
01:41:49]} {[%emt 00:00:04]} 4. Nc3 {[%clk 01:42:13]} {[%emt 00:00:08]} e6
{[%clk 01:41:53]} {[%emt 00:00:25]} 5. g4 {[%clk 01:42:37]} {[%emt 00:00:07]}
Bg6 {[%clk 01:42:07]} {[%emt 00:00:16]} 6. Nge2 {[%clk 01:42:58]} {[%emt
00:00:08]} Qb6 {[%clk 01:34:37]} {[%emt 00:08:01]} 7. h4 {[%clk 01:42:54]}
{[%emt 00:00:34]} h5 {[%clk 01:34:56]} {[%emt 00:00:11]} 8. Nf4 {[%clk
01:43:11]} {[%emt 00:00:13]} Bh7 {[%clk 01:35:18]} {[%emt 00:00:08]} 9. Nxh5
{[%clk 01:43:33]} {[%emt 00:00:07]} c5 {[%clk 01:33:28]} {[%emt 00:02:20]} 10.
Be3 {[%clk 01:32:09]} {[%emt 00:11:55]} Nc6 {[%clk 01:27:04]} {[%emt 00:06:54]}
11. dxc5 {[%clk 01:27:40]} {[%emt 00:04:59]} Bxc5 {[%clk 01:26:29]} {[%emt
00:01:05]} 12. Bxc5 {[%clk 01:24:48]} {[%emt 00:03:22]} Qxc5 {[%clk 01:26:42]}
{[%emt 00:00:17]} 13. Bd3 {[%clk 01:11:54]} {[%emt 00:13:23]} Nxe5 {[%clk
01:09:19]} {[%emt 00:17:53]} 14. Nxg7+ {[%clk 00:50:25]} {[%emt 00:21:59]} Ke7
{[%clk 00:59:21]} {[%emt 00:10:28]} 15. Bxh7 {[%clk 00:46:47]} {[%emt
00:04:08]} Rxh7 {[%clk 00:59:42]} {[%emt 00:00:10]} 16. Nh5 {[%clk 00:43:13]}
{[%emt 00:04:03]} Qb4 {[%clk 00:49:24]} {[%emt 00:10:49]} 17. Rg1 {[%clk
00:13:26]} {[%emt 00:30:16]} d4 {[%clk 00:36:58]} {[%emt 00:12:57]} 18. a3
{[%clk 00:13:37]} {[%emt 00:00:18]} Qxb2 {[%clk 00:35:37]} {[%emt 00:01:51]} 19.
Na4 {[%clk 00:06:43]} {[%emt 00:07:24]} Qb5 {[%clk 00:30:55]} {[%emt 00:05:12]}
20. c4 {[%clk 00:05:52]} {[%emt 00:01:21]} Qxc4 {[%clk 00:22:00]} {[%emt
00:09:25]} 21. Rg3 {[%clk 00:05:49]} {[%emt 00:00:33]} d3 {[%clk 00:16:49]}
{[%emt 00:05:42]} 22. Rc1 {[%clk 00:05:17]} {[%emt 00:01:02]} Qe4+ {[%clk
00:09:50]} {[%emt 00:07:28]} 23. Kf1 {[%clk 00:03:54]} {[%emt 00:01:52]} Qh1+
{[%clk 00:06:51]} {[%emt 00:03:30]} 24. Rg1 {[%clk 00:04:19]} {[%emt 00:00:05]}
Qh3+ {[%clk 00:07:15]} {[%emt 00:00:06]} 25. Rg2 {[%clk 00:04:25]} {[%emt
00:00:24]} Rd8 {[%clk 00:05:00]} {[%emt 00:02:46]} 26. Rc7+ {[%clk 00:03:22]}
{[%emt 00:01:32]} Kf8 {[%clk 00:03:38]} {[%emt 00:01:52]} 27. Qd2 {[%clk
00:01:19]} {[%emt 00:02:33]} Qh1+ {[%clk 00:04:02]} {[%emt 00:00:05]} 28. Rg1
{[%clk 00:01:43]} {[%emt 00:00:07]} Qxg1+ {[%clk 00:04:30]} {[%emt 00:00:02]}
0-1

[Event "Masters Tournament (MTO)"]
[Site "Biel, Switzerland"]
[Date "2026.07.18"]
[Round "6.46"]
[White "Simon, Ralf-Axel"]
[Black "Magnussen, Petur Gardar"]
[Result "0-1"]
[TimeControl "100+30+30sec/move"]
[WhiteTitle "-"]
[BlackTitle "-"]
[WhiteFideId "4603125"]
[BlackFideId "7203802"]
[WhiteElo "1935"]
[BlackElo "1957"]

1. d4 {[%clk 01:40:47]} {[%emt 00:00:12]} d5 {[%clk 01:40:57]} {[%emt
00:00:05]} 2. Nf3 {[%clk 01:39:38]} {[%emt 00:01:39]} Nf6 {[%clk 01:41:15]}
{[%emt 00:00:11]} 3. c4 {[%clk 01:37:41]} {[%emt 00:02:27]} e6 {[%clk
01:41:41]} {[%emt 00:00:05]} 4. Nc3 {[%clk 01:36:03]} {[%emt 00:02:08]} Be7
{[%clk 01:41:51]} {[%emt 00:00:19]} 5. g3 {[%clk 01:34:52]} {[%emt 00:01:41]}
O-O {[%clk 01:41:07]} {[%emt 00:01:14]} 6. Bg2 {[%clk 01:34:08]} {[%emt
00:01:14]} c6 {[%clk 01:40:53]} {[%emt 00:00:44]} 7. O-O {[%clk 01:30:39]}
{[%emt 00:03:59]} b6 {[%clk 01:36:23]} {[%emt 00:05:00]} 8. b3 {[%clk
01:09:36]} {[%emt 00:21:32]} Bb7 {[%clk 01:32:20]} {[%emt 00:04:32]} 9. Bb2
{[%clk 01:04:04]} {[%emt 00:06:03]} Nbd7 {[%clk 01:30:40]} {[%emt 00:02:10]} 10.
Qc2 {[%clk 00:59:01]} {[%emt 00:05:32]} dxc4 {[%clk 01:06:10]} {[%emt
00:25:01]} 11. bxc4 {[%clk 00:58:29]} {[%emt 00:01:02]} c5 {[%clk 01:05:17]}
{[%emt 00:01:24]} 12. e3 {[%clk 00:40:18]} {[%emt 00:18:40]} cxd4 {[%clk
00:53:53]} {[%emt 00:11:53]} 13. exd4 {[%clk 00:40:10]} {[%emt 00:00:39]} a6
{[%clk 00:52:10]} {[%emt 00:02:14]} 14. Rfd1 {[%clk 00:20:30]} {[%emt
00:20:09]} Qc7 {[%clk 00:44:33]} {[%emt 00:08:07]} 15. d5 {[%clk 00:14:28]}
{[%emt 00:06:32]} exd5 {[%clk 00:36:19]} {[%emt 00:08:43]} 16. cxd5 {[%clk
00:09:48]} {[%emt 00:05:10]} Nxd5 {[%clk 00:27:09]} {[%emt 00:09:40]} 17. Rac1
{[%clk 00:05:46]} {[%emt 00:04:30]} Nxc3 {[%clk 00:21:34]} {[%emt 00:06:07]} 18.
Bxc3 {[%clk 00:05:24]} {[%emt 00:00:52]} Rac8 {[%clk 00:17:11]} {[%emt
00:04:54]} 19. Qd2 {[%clk 00:03:47]} {[%emt 00:02:07]} Nc5 {[%clk 00:17:06]}
{[%emt 00:00:35]} 20. Be5 {[%clk 00:02:28]} {[%emt 00:01:48]} Qc6 {[%clk
00:10:58]} {[%emt 00:06:38]} 21. Nh4 {[%clk 00:00:36]} {[%emt 00:02:23]} Qe6
{[%clk 00:05:46]} {[%emt 00:05:41]} 22. Bxb7 {[%clk 00:00:49]} {[%emt
00:00:19]} Nxb7 {[%clk 00:05:51]} {[%emt 00:00:25]} 23. Nf3 {[%clk 00:00:44]}
{[%emt 00:00:34]} Qf5 {[%clk 00:04:44]} {[%emt 00:01:37]} 24. Qe3 {[%clk
00:00:52]} {[%emt 00:00:22]} Bc5 {[%clk 00:04:19]} {[%emt 00:00:55]} 25. Qf4
{[%clk 00:01:01]} {[%emt 00:00:21]} Qxf4 {[%clk 00:04:05]} {[%emt 00:00:44]} 26.
Bxf4 {[%clk 00:01:27]} {[%emt 00:00:03]} Rfd8 {[%clk 00:03:17]} {[%emt
00:01:18]} 27. Kg2 {[%clk 00:01:36]} {[%emt 00:00:21]} f6 {[%emt 00:02:10]} 0-1